bitfinex/quotes_SOLUSD_20251128
["timestamp","ask_amount","ask_price","bid_price","bid_amount"]
[1764292718216,16.308864,139.83,139.81,9.14486373]
[1764292718417,23.45881772,139.87,139.82,9.14486373]
[1764292718611,16.308864,139.84,139.82,9.85486373]
[1764292718932,3.2,139.83,139.82,9.85486373]
[1764292719405,3.2,139.83,139.81,9.14486373]
[1764292719609,3.2,139.83,139.78,9.14486373]
[1764292719610,16.308864,139.81,139.78,9.14486373]
[1764292719814,3.2,139.8,139.78,9.14486373]
[1764292720202,3.2,139.8,139.77,9.14486373]
[1764292720603,3.2,139.8,139.77,9.82486373]
[1764292721408,3.2,139.8,139.77,0.68]
[1764292721834,10.3531054,139.8,139.77,0.68]
[1764292722631,10.3531054,139.8,139.75,7.15531349]
[1764292722810,10.3531054,139.8,139.76,0.68]
[1764292723535,10.3531054,139.8,139.74,9.14486373]
[1764292723536,8.80994492,139.79,139.74,9.14486373]
[1764292723719,8.80994492,139.79,139.72,9.14486373]
[1764292723720,18.44480865,139.79,139.72,9.14486373]
[1764292723924,18.44480865,139.79,139.72,9.82486373]
[1764292724242,18.44480865,139.79,139.73,0.68]
[1764292724732,9.29994492,139.79,139.73,0.68]
[1764292724928,8.80994492,139.78,139.73,0.68]
[1764292725130,3.2,139.77,139.73,0.68]
[1764292725346,8.80994492,139.76,139.71,0.68]
[1764292725636,8.80994492,139.76,139.71,9.82486373]
[1764292726026,12.83486373,139.77,139.72,9.82486373]
[1764292726027,3.2,139.77,139.72,9.82486373]
[1764292726218,19.508864,139.76,139.72,9.82486373]
[1764292726537,19.508864,139.76,139.73,0.68]
[1764292726833,3.2,139.75,139.73,16.9814276]
[1764292727042,3.2,139.74,139.73,16.9814276]
[1764292727214,3.2,139.8,139.74,0.68]
[1764292727420,3.2,139.8,139.78,9.14486373]
[1764292727943,3.2,139.8,139.78,0.68]
[1764292728743,19.508864,139.8,139.78,9.82486373]
[1764292729615,19.508864,139.8,139.78,0.68]
[1764292730125,3.2,139.79,139.78,9.82486373]
[1764292730321,3.2,139.79,139.78,16.97896302]
[1764292731950,3.2,139.79,139.76,17.88708359]
[1764292731951,3.2,139.79,139.77,9.14486373]
[1764292732239,3.2,139.79,139.77,9.82486373]
[1764292732418,3.2,139.79,139.78,0.68]
[1764292732617,16.308864,139.8,139.78,0.68]
[1764292732834,3.2,139.79,139.78,0.68]
[1764292733843,3.2,139.79,139.78,16.97896302]
[1764292734980,32.26998408,139.84,139.78,16.97896302]
[1764292735273,3.2,139.83,139.79,9.82486373]
[1764292736246,10.3515697,139.83,139.79,9.82486373]
[1764292737569,10.8415697,139.83,139.77,7.83441342]
[1764292737868,9.29994492,139.82,139.76,0.68]
[1764292738068,9.29994492,139.82,139.77,9.14486373]
[1764292738374,18.44480865,139.82,139.76,9.82486373]
[1764292738575,17.95480865,139.82,139.76,9.82486373]
[1764292738772,0.49,139.81,139.76,9.82486373]
[1764292739074,3.2,139.8,139.76,9.82486373]
[1764292739457,3.2,139.8,139.77,0.68]
[1764292740468,3.2,139.8,139.76,16.29990851]
[1764292740673,3.2,139.8,139.76,16.97990851]
[1764292740854,3.2,139.8,139.76,0.68]
[1764292741170,3.2,139.8,139.7,12.34486373]
[1764292741373,16.308864,139.77,139.73,0.68]
[1764292741560,3.2,139.76,139.73,0.68]
[1764292742168,3.2,139.76,139.73,9.82486373]
[1764292742370,3.2,139.76,139.74,9.14486373]
[1764292742567,16.308864,139.77,139.74,9.14486373]
[1764292742568,3.2,139.77,139.74,9.82486373]
[1764292742771,3.2,139.77,139.75,0.68]
[1764292743378,0.49,139.76,139.72,9.14486373]
[1764292743583,19.508864,139.77,139.71,0.68]
[1764292743880,19.508864,139.77,139.72,9.14486373]
[1764292744085,26.66359227,139.77,139.72,9.14486373]
[1764292744386,16.308864,139.76,139.73,9.82486373]
[1764292744886,3.2,139.76,139.75,9.14486373]
[1764292745085,3.2,139.76,139.75,9.82486373]
[1764292745277,3.2,139.76,139.75,0.68]
[1764292745781,3.2,139.76,139.75,16.98049879]
[1764292746185,7.15162248,139.83,139.75,16.98049879]
[1764292746387,16.308864,139.8,139.78,9.14486373]
[1764292746596,3.2,139.79,139.76,9.82486373]
[1764292747062,3.2,139.79,139.77,0.68]
[1764292747598,3.2,139.79,139.73,17.89105318]
[1764292747599,3.2,139.79,139.75,0.68]
[1764292747765,3.2,139.79,139.75,9.14486373]
[1764292747967,3.2,139.79,139.76,0.68]
[1764292748996,3.2,139.79,139.75,0.68]
[1764292749174,3.69,139.79,139.75,0.68]
[1764292749371,10.84384612,139.79,139.75,0.68]
[1764292750486,3.2,139.78,139.75,0.67]
[1764292751294,3.2,139.77,139.75,0.67]
[1764292751895,0.49,139.76,139.7,0.69]
[1764292752086,17.95480865,139.72,139.68,83.02471074]
[1764292752288,17.95480865,139.7,139.68,82.33471074]
[1764292752680,8.80994492,139.7,139.68,82.33471074]
[1764292753279,3.2,139.69,139.68,82.33471074]
[1764292754584,3.2,139.69,139.68,83.02471074]
[1764292754904,3.2,139.69,139.68,82.33471074]
[1764292757581,25.60880892,139.69,139.68,82.33471074]
[1764292757780,28.80880892,139.69,139.68,82.33471074]
[1764292758290,28.31880892,139.69,139.68,82.33471074]
[1764292759080,19.508864,139.69,139.68,82.33471074]
[1764292761113,3.2,139.69,139.68,82.33471074]
[1764292764825,15.96797061,139.71,139.68,82.33471074]
[1764292764995,3.2,139.69,139.68,82.33471074]
[1764292765201,3.2,139.69,139.68,83.02471074]
[1764292767720,3.2,139.69,139.68,82.33471074]
[1764292768729,10.35870856,139.69,139.68,82.33471074]
[1764292769122,8.80994492,139.7,139.68,82.33471074]
[1764292769424,3.2,139.69,139.68,82.33471074]
[1764292769632,12.49994492,139.69,139.68,82.33471074]
[1764292770310,12.00994492,139.69,139.68,82.33471074]
[1764292771330,19.16865348,139.69,139.68,82.33471074]
[1764292771508,23.46617289,139.72,139.68,83.02471074]
[1764292771713,3.2,139.71,139.69,0.69]
[1764292771907,3.2,139.71,139.68,83.02471074]
[1764292772306,7.15513142,139.76,139.7,5.25468415]
[1764292772623,3.2,139.75,139.7,5.25468415]
[1764292772832,3.2,139.75,139.71,0.69]
[1764292773022,3.2,139.75,139.71,5.94468415]
[1764292773224,3.2,139.75,139.71,13.10207007]
[1764292773420,3.2,139.75,139.72,5.94468415]
[1764292773731,3.2,139.74,139.72,5.94468415]
[1764292774229,3.2,139.74,139.73,0.69]
[1764292776116,10.84624676,139.74,139.68,89.49375371]
[1764292776320,10.84624676,139.74,139.69,5.94468415]
[1764292776713,10.84624676,139.74,139.68,89.49375371]
[1764292776714,3.2,139.74,139.7,5.94468415]
[1764292777335,3.2,139.74,139.71,0.69]
[1764292777745,3.2,139.74,139.71,13.10186503]
[1764292778339,3.2,139.74,139.72,5.25468415]
[1764292778519,8.80994492,139.77,139.72,5.94468415]
[1764292778714,3.2,139.76,139.72,5.94468415]
[1764292779139,3.2,139.75,139.73,0.69]
[1764292780846,3.2,139.75,139.73,7.84653815]
[1764292781050,3.2,139.75,139.73,0.69]
[1764292782050,3.2,139.75,139.7,7.15773426]
[1764292782354,3.2,139.75,139.72,5.25468415]
[1764292782554,3.2,139.75,139.72,12.41152184]
[1764292782740,3.2,139.75,139.73,0.69]
[1764292783340,16.308864,139.78,139.73,0.69]
[1764292783532,3.2,139.77,139.73,0.69]
[1764292783854,3.2,139.77,139.73,5.94468415]
[1764292784433,3.2,139.77,139.74,0.69]
[1764292785153,3.2,139.77,139.74,13.10078317]
[1764292785375,3.2,139.77,139.74,7.84609902]
[1764292787857,3.2,139.77,139.75,13.10011003]
[1764292788232,3.2,139.77,139.76,0.69]
[1764292789250,3.2,139.77,139.75,7.15542588]
[1764292789459,3.2,139.77,139.75,13.10011003]
[1764292791665,3.2,139.77,139.75,12.41011003]
[1764292791861,3.2,139.77,139.74,5.94468415]
[1764292792768,3.2,139.77,139.75,0.69]
[1764292794461,3.2,139.77,139.74,9.36078331]
[1764292794687,3.2,139.77,139.74,10.05078331]
[1764292795082,3.2,139.77,139.74,9.36078331]
[1764292795293,3.2,139.77,139.75,0.69]
[1764292801500,3.2,139.77,139.75,7.84558002]
[1764292801683,3.2,139.77,139.75,10.05023481]
[1764292801886,3.2,139.77,139.76,0.69]
[1764292802305,3.2,139.77,139.76,7.84512306]
[1764292803399,3.2,139.77,139.76,7.15512306]
[1764292803596,3.2,139.77,139.76,7.84512306]
[1764292803907,3.2,139.77,139.76,0.69]
[1764292804097,3.2,139.77,139.76,7.84512306]
[1764292804800,3.2,139.77,139.76,0.69]
[1764292805287,3.2,139.77,139.76,7.84512306]
[1764292805487,3.2,139.77,139.76,0.69]
[1764292805712,3.2,139.77,139.75,0.69]
[1764292806418,11.01459971,139.76,139.72,7.84703546]
[1764292806715,11.01459971,139.76,139.73,0.69]
[1764292808596,8.80994492,139.76,139.73,0.69]
[1764292808808,8.80994492,139.76,139.73,7.84663915]
[1764292810631,8.80994492,139.76,139.74,0.71]
[1764292811432,3.2,139.77,139.74,7.86610572]
[1764292811612,8.80994492,139.78,139.75,2.20465479]
[1764292811813,3.18,139.76,139.75,0.71]
[1764292812017,3.18,139.76,139.75,2.20465479]
[1764292812519,3.18,139.76,139.75,2.91465479]
[1764292813711,3.18,139.76,139.75,10.07028985]
[1764292814212,3.18,139.76,139.75,7.86563506]
[1764292814836,3.18,139.76,139.75,0.71]
[1764292815925,3.18,139.76,139.75,2.91465479]
[1764292816323,3.18,139.76,139.75,0.71]
[1764292816626,3.18,139.76,139.75,2.91465479]
[1764292819239,3.18,139.76,139.75,10.07028985]
[1764292820748,3.18,139.76,139.75,9.36028985]
[1764292821153,3.18,139.76,139.75,10.08028985]
[1764292821845,3.18,139.76,139.73,2.92465479]
[1764292822048,3.18,139.76,139.73,10.08126905]
[1764292822432,3.18,139.76,139.72,2.20465479]
[1764292822433,9.29994492,139.75,139.72,2.20465479]
[1764292822826,8.80994492,139.75,139.72,2.92465479]
[1764292823350,8.80994492,139.75,139.72,0.72]
[1764292823641,8.80994492,139.75,139.72,10.08181293]
[1764292824355,8.80994492,139.75,139.72,2.92465479]
[1764292824661,8.80994492,139.75,139.71,4.16596402]
[1764292824662,16.45594897,139.75,139.71,4.16596402]
[1764292824869,16.45594897,139.75,139.71,0.72]
[1764292825047,16.45594897,139.75,139.71,4.16596402]
[1764292825250,8.80994492,139.73,139.69,4.16596402]
[1764292825463,16.308864,139.69,139.68,82.33471074]
[1764292825680,19.488864,139.69,139.68,82.33471074]
[1764292826064,28.29880892,139.69,139.68,82.33471074]
[1764292826245,28.78880892,139.69,139.68,82.33471074]
[1764292827450,35.94751748,139.69,139.68,82.33471074]
[1764292829968,0.49,139.75,139.68,86.50067476]
[1764292830166,8.80994492,139.73,139.7,3.44596402]
[1764292830353,3.18,139.74,139.71,3.44596402]
[1764292830664,16.308864,139.73,139.7,3.44596402]
[1764292831051,16.308864,139.73,139.71,0.72]
[1764292831653,12.74590894,139.72,139.68,82.33471074]
[1764292831843,8.80994492,139.7,139.68,82.33471074]
[1764292832260,12.74590894,139.7,139.68,82.33471074]
[1764292833545,19.41442554,139.7,139.68,82.33471074]
[1764292833847,8.80994492,139.69,139.68,82.33471074]
[1764292834950,25.11880892,139.69,139.68,82.33471074]
[1764292835458,32.27751748,139.69,139.68,82.33471074]
[1764292837367,36.2134815,139.69,139.68,82.33471074]
[1764292837567,3.18,139.69,139.68,86.50067476]
[1764292837768,3.18,139.69,139.68,83.05471074]
[1764292844470,8.80994492,139.72,139.68,90.21393181]
[1764292844679,3.18,139.71,139.69,0.72]
[1764292845659,3.18,139.71,139.69,7.87855703]
[1764292845970,3.18,139.7,139.69,7.87855703]
[1764292847966,17.88956503,139.75,139.69,7.87855703]
[1764292847967,0.49,139.78,139.69,11.32452105]
[1764292848283,16.308864,139.74,139.71,3.44596402]
[1764292848663,3.18,139.73,139.72,0.72]
[1764292849082,3.18,139.73,139.72,7.87717148]
[1764292849375,3.18,139.73,139.72,11.3231355]
[1764292853587,3.18,139.74,139.72,11.3231355]
[1764292853884,3.18,139.74,139.73,3.44596402]
[1764292854787,3.18,139.74,139.73,11.32262329]
[1764292854984,16.308864,139.78,139.73,29.21427146]
[1764292855186,3.18,139.77,139.75,3.44596402]
[1764292855394,3.18,139.77,139.76,3.44596402]
[1764292855799,3.18,139.77,139.76,4.16596402]
[1764292856495,3.18,139.77,139.75,3.44596402]
[1764292856792,3.18,139.77,139.76,7.15512306]
[1764292857167,19.978864,139.77,139.72,4.16596402]
[1764292857392,19.978864,139.77,139.72,3.44596402]
[1764292857583,19.978864,139.77,139.73,0.72]
[1764292858292,19.978864,139.77,139.73,4.16596402]
[1764292858471,27.13373819,139.77,139.73,11.32222886]
[1764292858872,19.488864,139.77,139.74,4.16596402]
[1764292859089,19.488864,139.77,139.73,11.32222886]
[1764292859090,19.978864,139.77,139.73,11.32222886]
[1764292861167,19.488864,139.77,139.74,7.87590037]
[1764292861379,19.488864,139.77,139.74,11.32186439]
[1764292863785,19.488864,139.77,139.74,7.87590037]
[1764292863991,19.488864,139.77,139.74,11.32186439]
[1764292864591,19.488864,139.77,139.75,0.72]
[1764292866176,19.488864,139.77,139.74,11.32186439]
[1764292866393,19.488864,139.77,139.74,10.60186439]
[1764292866571,19.488864,139.77,139.74,11.32186439]
[1764292866772,3.18,139.77,139.75,0.72]
[1764292867085,3.18,139.77,139.76,3.44596402]
[1764292867287,3.18,139.77,139.76,4.16596402]
[1764292867991,3.18,139.77,139.76,0.72]
[1764292868172,3.18,139.77,139.76,4.16596402]
[1764292868702,3.18,139.77,139.76,11.32108708]
[1764292869993,3.18,139.78,139.76,29.20889475]
[1764292870195,3.18,139.78,139.75,7.15544219]
[1764292870381,3.18,139.78,139.77,3.44596402]
[1764292870776,3.18,139.78,139.77,4.15596402]
[1764292872598,3.18,139.78,139.77,11.31057516]
[1764292874981,0.49,139.84,139.77,29.19710302]
[1764292875201,9.29994492,139.84,139.83,3.44596402]
[1764292875402,12.47994492,139.84,139.83,3.44596402]
[1764292875884,16.308864,139.85,139.83,3.44596402]
[1764292876090,8.80994492,139.85,139.84,3.44596402]
[1764292876299,11.98994492,139.85,139.84,3.44596402]
[1764292876499,11.98994492,139.85,139.79,21.32877979]
[1764292876500,11.98994492,139.85,139.83,3.44596402]
[1764292876685,12.70994492,139.85,139.83,3.44596402]
[1764292878406,12.70994492,139.85,139.82,10.59797963]
[1764292878605,12.70994492,139.85,139.82,11.31797963]
[1764292878899,12.70994492,139.85,139.83,3.44596402]
[1764292879201,3.18,139.85,139.83,10.59712079]
[1764292879499,3.18,139.85,139.84,3.44596402]
[1764292879684,3.18,139.85,139.84,4.16596402]
[1764292880692,16.508864,139.91,139.84,4.16596402]
[1764292880693,3.18,139.89,139.84,4.16596402]
[1764292880902,3.18,139.89,139.87,3.44596402]
[1764292881102,3.18,139.89,139.87,10.59496569]
[1764292881295,3.18,139.89,139.88,4.16596402]
[1764292881496,0.2,139.91,139.88,4.16596402]
[1764292881679,3.18,139.9,139.89,4.16596402]
[1764292883001,3.18,139.9,139.89,7.8684738]
[1764292883311,3.18,139.9,139.89,4.16596402]
[1764292883514,3.18,139.9,139.89,3.44596402]
[1764292883890,3.9,139.9,139.84,18.59712522]
[1764292884086,3.9,139.9,139.85,3.44596402]
[1764292884284,17.028864,139.89,139.85,10.59636826]
[1764292884510,17.028864,139.89,139.85,11.31636826]
[1764292884691,17.028864,139.89,139.85,10.071282]
[1764292884886,0.72,139.88,139.82,0.72]
[1764292885095,2.20087776,139.87,139.82,7.87205263]
[1764292885294,3.18,139.86,139.82,7.87205263]
[1764292885489,3.18,139.86,139.79,2.20087776]
[1764292885490,11.01082268,139.85,139.79,2.20087776]
[1764292885695,2.20087776,139.84,139.78,20.80559808]
[1764292885909,2.92087776,139.84,139.79,7.15358752]
[1764292886295,2.92087776,139.84,139.79,7.87358752]
[1764292887490,2.92087776,139.83,139.79,7.87358752]
[1764292887692,3.18,139.82,139.79,7.87358752]
[1764292889192,3.18,139.82,139.79,0.72]
[1764292889500,3.18,139.82,139.79,7.87344448]
[1764292891224,9.52994492,139.85,139.8,0.72]
[1764292891524,3.18,139.84,139.81,7.15256419]
[1764292891893,3.18,139.84,139.81,7.87256419]
[1764292892815,3.9,139.84,139.8,9.35380043]
[1764292892997,3.9,139.84,139.8,10.07380043]
[1764292893192,0.72,139.84,139.8,10.07380043]
[1764292893409,3.18,139.83,139.8,10.07380043]
[1764292893919,3.18,139.83,139.81,0.72]
[1764292895521,3.18,139.83,139.82,7.15205263]
[1764292896999,3.18,139.83,139.82,7.87205263]
[1764292897825,3.18,139.83,139.82,7.15205263]
[1764292899209,3.18,139.83,139.81,7.15256419]
[1764292899394,3.18,139.83,139.81,7.87256419]
[1764292900120,0.72,139.85,139.81,7.87256419]
[1764292900422,3.18,139.83,139.81,7.87256419]
[1764292901013,3.18,139.83,139.81,7.15256419]
[1764292901200,3.18,139.83,139.82,0.71]
[1764292901822,3.18,139.83,139.81,7.15256419]
[1764292902033,3.18,139.83,139.81,7.86256419]
[1764292904627,3.18,139.83,139.82,0.71]
[1764292905125,3.18,139.83,139.81,7.15256419]
[1764292905313,3.18,139.83,139.81,7.86256419]
[1764292906823,0.68,139.82,139.78,2.91087776]
[1764292907506,2.88087776,139.82,139.77,0.71]
[1764292907711,11.69082268,139.81,139.76,2.20087776]
[1764292908220,0.68,139.8,139.76,2.91087776]
[1764292908416,3.18,139.79,139.76,0.71]
[1764292908814,3.18,139.79,139.77,7.15461114]
[1764292910229,3.18,139.79,139.77,7.86461114]
[1764292911807,3.18,139.79,139.77,7.15461114]
[1764292912009,0.68,139.78,139.74,0.71]
[1764292912335,25.11880892,139.77,139.69,7.15870856]
[1764292912505,2.20087776,139.74,139.69,7.86870856]
[1764292912704,3.18,139.73,139.69,7.15870856]
[1764292912913,3.18,139.73,139.7,0.71]
[1764292913124,2.88087776,139.72,139.68,89.49377213]
[1764292913640,0.68,139.71,139.68,89.49377213]
[1764292913804,2.88087776,139.71,139.68,89.49377213]
[1764292914202,0.68,139.71,139.68,89.49377213]
[1764292915820,19.18974176,139.73,139.69,0.71]
[1764292916023,3.86,139.72,139.68,89.49377213]
[1764292916340,3.86,139.72,139.68,90.20377213]
[1764292916633,3.18,139.72,139.68,90.20377213]
[1764292916931,0.68,139.71,139.68,90.20377213]
[1764292917935,3.18,139.72,139.68,90.20377213]
[1764292918132,3.86,139.72,139.69,0.71]
[1764292918637,3.18,139.72,139.69,0.71]
[1764292919115,3.18,139.72,139.69,7.86856962]
[1764292919736,16.308864,139.73,139.7,0.71]
[1764292920036,3.18,139.72,139.7,0.71]
[1764292920339,3.18,139.72,139.7,2.91087776]
[1764292920712,3.18,139.72,139.71,0.71]
[1764292921136,3.18,139.72,139.69,0.71]
[1764292921439,3.86,139.72,139.69,7.86849728]
[1764292922931,2.88087776,139.71,139.68,82.33471074]
[1764292923343,0.68,139.71,139.68,90.20390189]
[1764292923836,2.88087776,139.71,139.68,89.49390189]
[1764292924020,0.68,139.71,139.68,90.20390189]
[1764292924214,2.88087776,139.71,139.68,90.20390189]
[1764292924546,6.06087776,139.72,139.68,90.20390189]
[1764292927748,2.88087776,139.72,139.68,90.20390189]
[1764292928044,5.38087776,139.71,139.68,90.20390189]
[1764292928419,3.18,139.71,139.68,90.20390189]
[1764292929016,3.18,139.71,139.68,83.04471074]
[1764292930337,3.86,139.71,139.68,83.04471074]
[1764292930640,3.18,139.71,139.68,90.20388249]
[1764292930948,3.18,139.71,139.69,0.71]
[1764292931247,16.308864,139.72,139.69,7.86868012]
[1764292931451,3.18,139.7,139.68,89.49354975]
[1764292931619,3.18,139.7,139.68,90.20354975]
[1764292932318,2.89087776,139.72,139.69,0.71]
[1764292932624,3.87,139.71,139.68,90.20354975]
[1764292932825,13.22856918,139.71,139.68,82.33471074]
[1764292933126,0.69,139.7,139.68,82.33471074]
[1764292933533,27.31968668,139.69,139.68,82.33471074]
[1764292934045,28.00968668,139.69,139.68,82.33471074]
[1764292934344,8.80994492,139.7,139.68,82.33471074]
[1764292934521,6.07087776,139.71,139.68,82.33471074]
[1764292934941,5.38087776,139.71,139.68,82.33471074]
[1764292935144,0.69,139.7,139.68,82.33471074]
[1764292935339,0.69,139.7,139.68,89.49376992]
[1764292935640,3.18,139.69,139.68,90.20376992]
[1764292936141,3.18,139.69,139.68,92.40464768]
[1764292936341,2.89087776,139.78,139.68,110.30270037]
[1764292936651,3.18,139.77,139.74,2.20087776]
[1764292936835,3.18,139.77,139.76,7.15512306]
[1764292937229,3.18,139.77,139.75,0.71]
[1764292938541,3.18,139.77,139.75,7.86562043]
[1764292939541,0.69,139.76,139.73,7.15648575]
[1764292939756,18.50974176,139.74,139.68,85.2455885]
[1764292939942,3.18,139.73,139.68,85.2455885]
[1764292940146,3.18,139.73,139.69,0.71]
[1764292940334,3.87,139.73,139.69,0.71]
[1764292940531,3.87,139.73,139.69,25.76520762]
[1764292944967,3.87,139.73,139.7,0.7]
[1764292945267,3.18,139.73,139.7,0.7]
[1764292948373,3.18,139.73,139.71,7.15768377]
[1764292948664,4.43043856,139.79,139.72,3.44715303]
[1764292948861,8.80994492,139.78,139.73,4.14715303]
[1764292949046,11.98994492,139.78,139.73,4.14715303]
[1764292949252,12.67994492,139.78,139.74,0.7]
[1764292949454,0.69,139.77,139.74,0.7]
[1764292949953,3.18,139.76,139.75,3.44715303]
[1764292950466,25.80880892,139.8,139.75,11.30278809]
[1764292950644,3.18,139.79,139.76,0.7]
[1764292951246,3.87,139.79,139.76,0.7]
[1764292951568,16.308864,139.78,139.76,0.7]
[1764292952678,16.308864,139.78,139.76,11.30193155]
[1764292952850,16.308864,139.78,139.76,7.85477852]
[1764292953054,16.308864,139.78,139.72,3.44715303]
[1764292953055,0.69,139.77,139.72,17.89237997]
[1764292953353,3.18,139.76,139.73,10.6038123]
[1764292953566,3.18,139.76,139.72,11.30412441]
[1764292953883,0.69,139.75,139.72,7.15697138]
[1764292954573,3.18,139.76,139.72,7.85697138]
[1764292954780,0.69,139.75,139.72,7.85697138]
[1764292955165,0.69,139.75,139.72,7.15697138]
[1764292955367,0.69,139.75,139.7,10.60498634]
[1764292955552,4.13715303,139.75,139.7,11.30498634]
[1764292955751,4.13715303,139.75,139.7,10.60498634]
[1764292955958,4.13715303,139.75,139.7,11.30498634]
[1764292955959,0.69,139.74,139.7,11.30498634]
[1764292956265,0.69,139.74,139.7,7.85783331]
[1764292956266,3.18,139.73,139.7,7.85783331]
[1764292956671,3.87,139.73,139.7,7.85783331]
[1764292956868,3.87,139.73,139.7,7.15783331]
[1764292960571,3.18,139.73,139.69,25.054723]
[1764292960776,0.67,139.72,139.68,89.49374079]
[1764292960970,0.67,139.72,139.68,82.33471074]
[1764292960971,4.11715303,139.72,139.68,82.33471074]
[1764292961283,4.11715303,139.72,139.68,89.4937768]
[1764292961584,4.11715303,139.71,139.68,82.33471074]
[1764292961759,22.93601703,139.7,139.68,82.33471074]
[1764292961959,23.60601703,139.7,139.68,82.33471074]
[1764292962153,0.67,139.69,139.68,82.33471074]
[1764292962573,3.18,139.7,139.68,90.18368346]
[1764292962876,3.18,139.7,139.69,0.69]
[1764292963576,3.18,139.7,139.69,4.13715303]
[1764292964763,3.18,139.7,139.69,11.29586159]
[1764292965677,3.18,139.7,139.69,7.84870856]
[1764292966478,3.18,139.7,139.68,82.33471074]
[1764292966650,3.85,139.7,139.68,82.33471074]
[1764292966855,0.67,139.69,139.68,82.33471074]
[1764292967154,4.11715303,139.69,139.68,82.33471074]
[1764292969168,20.08580651,139.69,139.68,82.33471074]
[1764292971593,23.26580651,139.69,139.68,82.33471074]
[1764292975060,23.26580651,139.69,139.63,0.1]
[1764292975061,25.11880892,139.64,139.63,0.1]
[1764292975464,28.56596195,139.64,139.63,0.1]
[1764292975664,38.90723379,139.64,139.63,0.1]
[1764292976385,25.11880892,139.6,139.55,0.69]
[1764292976688,31.74596195,139.6,139.55,0.69]
[1764292976899,31.74596195,139.6,139.53,0.69]
[1764292977189,59.01229429,139.6,139.5,84.95179063]
[1764292977378,3.44715303,139.51,139.5,84.95179063]
[1764292977575,19.4250429,139.51,139.5,84.95179063]
[1764292977882,26.05219593,139.51,139.5,84.95179063]
[1764292978081,22.6050429,139.51,139.5,84.95179063]
[1764292978267,26.05219593,139.51,139.5,84.95179063]
[1764292978681,28.33838303,139.51,139.5,84.95179063]
[1764292980683,19.15788987,139.51,139.5,84.95179063]
[1764292980999,28.33838303,139.51,139.5,42.99563011]
[1764292981287,15.97788987,139.51,139.5,42.99563011]
[1764292981491,28.33838303,139.51,139.5,42.99563011]
[1764292982392,3.18,139.51,139.5,43.68563011]
[1764292982597,19.488864,139.51,139.5,43.68563011]
[1764292983088,9.18049316,139.56,139.5,60.03458205]
[1764292983289,12.36049316,139.55,139.51,0.69]
[1764292983690,17.99043808,139.54,139.51,0.69]
[1764292983893,7.1669175,139.53,139.51,0.69]
[1764292984198,3.18,139.52,139.51,0.69]
[1764292985775,3.18,139.52,139.5,42.99563011]
[1764292985977,3.18,139.52,139.51,0.69]
[1764292986991,23.47517979,139.55,139.51,0.69]
[1764292987300,3.18,139.54,139.51,0.69]
[1764292988311,16.308864,139.52,139.5,42.99563011]
[1764292988506,19.488864,139.51,139.5,42.99563011]
[1764292990587,26.65680895,139.51,139.5,42.99563011]
[1764292992490,19.488864,139.51,139.5,43.64563011]
[1764292992894,19.488864,139.51,139.5,52.82612327]
[1764292993193,3.18,139.51,139.5,59.99458205]
[1764292993613,21.17043808,139.51,139.5,42.99563011]
[1764292993823,28.33838303,139.51,139.5,42.99563011]
[1764292994807,19.15788987,139.51,139.5,42.99563011]
[1764292995024,28.33838303,139.51,139.5,42.99563011]
[1764292999201,49.82838303,139.51,139.5,42.99563011]
[1764292999394,28.33838303,139.51,139.5,42.99563011]
[1764293001307,19.15788987,139.51,139.5,42.99563011]
[1764293001525,28.33838303,139.51,139.5,42.99563011]
[1764293002107,19.15788987,139.51,139.5,42.99563011]
[1764293002306,28.33838303,139.51,139.5,42.99563011]
[1764293005211,28.33838303,139.51,139.5,43.65563011]
[1764293005928,28.33838303,139.51,139.5,42.99563011]